Name,Sub Group,Service Area,Expense Type,Narrative,Date,Transaction Number,Amount,Supplier Name,Supplier Ref,Period,Year
Allerdale Borough Council,73102,Holding and Control Accounts,Capital Project Retentions,Holding Accounts General - Expenditure,13/01/2016,145181,874.6,HISTORIC PROPERTY RESTORATIONS LIMITED,C00150,10,2015
Allerdale Borough Council,15501,Supplies & Services,Planning and Development,Consultants Fees,06/01/2016,145182,850,WOOLERTON DODWELL ASSOCIATES,A00386,10,2015
Allerdale Borough Council,15501,Supplies & Services,Planning and Development,Consultants Fees,06/01/2016,145183,216.35,T.I.S. CUMBRIA LIMITED,C00157,10,2015
Allerdale Borough Council,15501,Supplies & Services,Estates,Consultants Fees,06/01/2016,145184,1616.65,HAYS SPECIALIST RECRUITMENT LTD,A00280,10,2015
Allerdale Borough Council,15501,Supplies & Services,Estates,Consultants Fees,13/01/2016,145185,1600,HAYS SPECIALIST RECRUITMENT LTD,A00280,10,2015
Allerdale Borough Council,12101,Premises,Flood Costs 2015,External Maintenance & Decoration,06/01/2016,145186,21875,ASPLI SAFETY LTD,A02273,10,2015
Allerdale Borough Council,12101,Premises,Flood Costs 2015,External Maintenance & Decoration,06/01/2016,145187,21875,ASPLI SAFETY LTD,A02273,10,2015
Allerdale Borough Council,16150,Supplies & Services,Town Centre Management,General Promotions,06/01/2016,145188,2800,MTM PRESENTATIONS LTD,A02259,10,2015
Allerdale Borough Council,15101,Supplies & Services,Corporate Property Maintenance,Equipment Costs,06/01/2016,145189,162.53,AST SIGNS LIMITED,A01473,10,2015
Allerdale Borough Council,20301,Third Party Payments,Parks and Grounds Maintenance,Contract Services-Parks & Open Spaces,06/01/2016,145190,34541.25,ISS WATERERS LANDSCAPE,C00044,10,2015
Allerdale Borough Council,20110,Third Party Payments,Trade Waste,Other Local Authorities,06/01/2016,145191,71883.75,CUMBRIA CC - GENERAL,A00066,10,2015
Allerdale Borough Council,10401,Employee Costs,Environmental Services Pay Group,Agency Staff Costs,13/01/2016,145192,3500,PRACTICUS LTD,A02237,10,2015
Allerdale Borough Council,10401,Employee Costs,Environmental Services Pay Group,Agency Staff Costs,20/01/2016,145193,1750,PRACTICUS LTD,A02237,10,2015
Allerdale Borough Council,15501,Supplies & Services,Street Cleansing,Consultants Fees,20/01/2016,145194,16,DUNDAS CHEMICAL CO (MOSSPARK),A00175,10,2015
Allerdale Borough Council,15501,Supplies & Services,Street Cleansing,Consultants Fees,20/01/2016,145195,78,DUNDAS CHEMICAL CO (MOSSPARK),A00175,10,2015
Allerdale Borough Council,15510,Supplies & Services,Confidential Waste,Disposal of Waste,06/01/2016,145196,131,J DUFFY LTD T/A PW CONF BUS SERVICES,A01846,10,2015
Allerdale Borough Council,16305,Supplies & Services,Flood Costs 2015,Assest Management Costs - Flooding,06/01/2016,145197,19800,ASPLI SAFETY LTD,A02273,10,2015
Allerdale Borough Council,16305,Supplies & Services,Flood Costs 2015,Assest Management Costs - Flooding,06/01/2016,145198,19800,ASPLI SAFETY LTD,A02273,10,2015
Allerdale Borough Council,20110,Third Party Payments,Trade Waste,Other Local Authorities,06/01/2016,145199,73383.75,CUMBRIA CC - GENERAL,A00066,10,2015
Allerdale Borough Council,15101,Supplies & Services,Recycling,Equipment Costs,13/01/2016,145200,12627.62,BPI RECYCLED PRODUCTS,A00318,10,2015
Allerdale Borough Council,15506,Supplies & Services,Environmental Protection,Professional Services,06/01/2016,145201,500,RS ACOUSTIC ENGINEERING LTD,A02263,10,2015
Allerdale Borough Council,14101,Transport,Mayoral Services,Vehicle Leasing,06/01/2016,145217,15,ACE TAXIS,A01927,10,2015
Allerdale Borough Council,14101,Transport,Mayoral Services,Vehicle Leasing,06/01/2016,145218,25,ACE TAXIS,A01927,10,2015
Allerdale Borough Council,14101,Transport,Mayoral Services,Vehicle Leasing,06/01/2016,145219,200,ACE TAXIS,A01927,10,2015
Allerdale Borough Council,16350,Supplies & Services,Planning and Development,Miscellaneous Expenses,06/01/2016,145220,5.85,K&R BADGES LIMITED,A01328,10,2015
Allerdale Borough Council,15101,Supplies & Services,Corporate Property Maintenance,Equipment Costs,06/01/2016,145221,17.96,ARCO LIMITED - HEAD OFFICE HULL,A00045,10,2015
Allerdale Borough Council,20110,Third Party Payments,Trade Waste,Other Local Authorities,06/01/2016,145222,73736.25,CUMBRIA CC - GENERAL,A00066,10,2015
Allerdale Borough Council,15101,Supplies & Services,Recycling,Equipment Costs,13/01/2016,145225,-164,BPI RECYCLED PRODUCTS,A00318,10,2015
Allerdale Borough Council,15601,Supplies & Services,Environmental Services Pay Group,Postage,06/01/2016,145226,200,ROYAL MAIL LETTERS,X00021,10,2015
Allerdale Borough Council,12402,Premises,Corporate Property Maintenance,Electricity,06/01/2016,145227,22.5,BES COMMERCIAL ELECTRICITY LTD,X00243,10,2015
Allerdale Borough Council,15502,Supplies & Services,Legal Services,Land Registry Fees,22/12/2015,145228,45,HM LAND REGISTRY,A00505,10,2015
Allerdale Borough Council,15502,Supplies & Services,Legal Services,Land Registry Fees,23/12/2015,145229,54,HM LAND REGISTRY,A00505,10,2015
Allerdale Borough Council,15502,Supplies & Services,Legal Services,Land Registry Fees,30/12/2015,145230,21,HM LAND REGISTRY,A00505,10,2015
Allerdale Borough Council,15502,Supplies & Services,Legal Services,Land Registry Fees,05/01/2016,145231,4,HM LAND REGISTRY,A00505,10,2015
Allerdale Borough Council,33112,Income,Planning and Development,Planning Fees Income,06/01/2016,145232,172,Redacted information - included personal information ,M00826,10,2015
Allerdale Borough Council,33113,Income,Building Control - Chargeable,Building Control Fees Income,06/01/2016,145233,105.22,Redacted information - included personal information ,M00827,10,2015
Allerdale Borough Council,15501,Supplies & Services,Solway Wetlands Project,Consultants Fees,06/01/2016,145234,150,Redacted information - included personal information ,A01920,10,2015
Allerdale Borough Council,15101,Supplies & Services,Purchase of Equipment (Enveloper),Equipment Costs,13/01/2016,145235,1799,TWOFOLD LTD ,A00317,10,2015
Allerdale Borough Council,15102,Supplies & Services,Domestic Waste,Equipment Repair & Maintenance,06/01/2016,145236,258.6,Redacted information - included personal information ,A00176,10,2015
Allerdale Borough Council,16305,Supplies & Services,Flood Costs 2015,Assest Management Costs - Flooding,20/01/2016,145237,66.66,ARGOS BUSINESS SOLUTION-STORE COLLECTION,A00411,10,2015
Allerdale Borough Council,15101,Supplies & Services,Public Convenience Cleaning,Equipment Costs,06/01/2016,145238,77.07,WF HYGIENE & CLEANING SUPPLIES,A01794,10,2015
Allerdale Borough Council,20150,Third Party Payments,Footways,General Partnership Service Fees,13/01/2016,145239,260,Redacted information - included personal information ,A00242,10,2015
Allerdale Borough Council,15103,Supplies & Services,KMAG Enhancement Activity,Purchase of Materials,06/01/2016,145240,99.14,YORKSHIRE PURCHASING ORGANISATION,A00747,10,2015
Allerdale Borough Council,15405,Supplies & Services,Electoral Registration,Use of External Printers,06/01/2016,145241,566.94,ELECTORAL REFORM SERVICES LTD,A02248,10,2015
Allerdale Borough Council,12307,Premises,Corporate Property Maintenance,Fixtures and Fittings,06/01/2016,145242,132.03,THYSSENKRUPP ELEVATOR UK LTD,C00072,10,2015
Allerdale Borough Council,12302,Premises,Solway Coast AONB Core Funding,Building Cleaning,13/01/2016,145243,94.58,ORIAN SOLUTIONS LTD,A01814,10,2015
Allerdale Borough Council,15506,Supplies & Services,KMAG Enhancement Activity,Professional Services,06/01/2016,145244,325,S A ASSOCIATES MANAGEMENT TRAINING LTD,A02242,10,2015
Allerdale Borough Council,16150,Supplies & Services,Solway AONB Other Projects,General Promotions,06/01/2016,145245,120,WEST HOUSE,A02020,10,2015
Allerdale Borough Council,15501,Supplies & Services,Estates,Consultants Fees,27/01/2016,145246,1121.8,HAYS SPECIALIST RECRUITMENT LTD,A00280,10,2015
Allerdale Borough Council,16302,Supplies & Services,Planning Policy,Room Hire,06/01/2016,145247,50,COCKERMOUTH TOWN COUNCIL,A00586,10,2015
Allerdale Borough Council,10401,Employee Costs,Building Control - Chargeable,Agency Staff Costs,20/01/2016,145248,135,THE OYSTER PARTNERSHIP LTD,C00118,10,2015
Allerdale Borough Council,20150,Third Party Payments,Footways,General Partnership Service Fees,06/01/2016,145249,4551.75,CUMBRIA CC - GENERAL,A00066,10,2015
Allerdale Borough Council,15401,Supplies & Services,Planning and Development,General Stationery,06/01/2016,145250,19.98,HEATONS OFFICE SOLUTION (PREV LAKELAND/INTEGRITY),A00069,10,2015
Allerdale Borough Council,15400,Supplies & Services,Benefits,"Budget-Printing,Stationery & Office Supp",13/01/2016,145251,119,CHILD POVERTY ACTION GROUP,A00866,10,2015
Allerdale Borough Council,20100,Third Party Payments,Museums,Budget-Partnership Services,06/01/2016,145252,7500,WORKINGTON HERITAGE GROUP LTD,A00339,10,2015
Allerdale Borough Council,15101,Supplies & Services,Building Control - Non-Chargeable,Equipment Costs,06/01/2016,145253,115.41,HEATONS OFFICE SOLUTION (PREV LAKELAND/INTEGRITY),A00069,10,2015
Allerdale Borough Council,16301,Supplies & Services,KMAG Enhancement Activity,Reimbursement,06/01/2016,145254,20.02,KESWICK MUSEUM & ART GALLERY,A00337,10,2015
Allerdale Borough Council,15516,Supplies & Services,Insurances,Insurance Services,06/01/2016,145255,1202.5,ZURICH MUNICIPAL,A00429,10,2015
Allerdale Borough Council,15501,Supplies & Services,Estates,Consultants Fees,20/01/2016,145256,1648.6,HAYS SPECIALIST RECRUITMENT LTD,A00280,10,2015
Allerdale Borough Council,12101,Premises,Public Convenience Cleaning,External Maintenance & Decoration,06/01/2016,145257,600,Redacted information - included personal information ,C00008,10,2015
Allerdale Borough Council,12101,Premises,Corporate Property Maintenance,External Maintenance & Decoration,06/01/2016,145258,83.76,DESIGN GRID LTD,A01627,10,2015
Allerdale Borough Council,15501,Supplies & Services,Estates,Consultants Fees,13/01/2016,145259,23.4,HAYS SPECIALIST RECRUITMENT LTD,A00280,10,2015
Allerdale Borough Council,16301,Supplies & Services,KMAG Enhancement Activity,Reimbursement,06/01/2016,145260,1122,KESWICK MUSEUM & ART GALLERY,A00337,10,2015
Allerdale Borough Council,12202,Premises,Corporate Property Maintenance,Electrical Repairs and Service,06/01/2016,145261,2430.79,LED HUT LTD,A02053,10,2015
Allerdale Borough Council,10605,Employee Costs,Training,Travel,06/01/2016,145262,25.5,EILBECK RENTAL,A01161,10,2015
Allerdale Borough Council,16301,Supplies & Services,KMAG Enhancement Activity,Reimbursement,06/01/2016,145263,138.22,KESWICK MUSEUM & ART GALLERY,A00337,10,2015
Allerdale Borough Council,16301,Supplies & Services,KMAG Enhancement Activity,Reimbursement,06/01/2016,145264,841.96,KESWICK MUSEUM & ART GALLERY,A00337,10,2015
Allerdale Borough Council,16305,Supplies & Services,Flood Costs 2015,Assest Management Costs - Flooding,13/01/2016,145265,142.44,ARGOS BUSINESS SOLUTION-STORE COLLECTION,A00411,10,2015
Allerdale Borough Council,12405,Premises,Off-street - Owned,Rentals and Lease Charges,06/01/2016,145266,4000,KESWICK RUGBY FOOTBALL CLUB LTD,X00117,10,2015
Allerdale Borough Council,10202,Employee Costs,Human Resources Pay Group,Medical Screening,,145267,-316.73,WELLWORK LTD,A00029,10,2015
Allerdale Borough Council,15750,Supplies & Services,Enterprise Coaches,General Telecommunications Costs,06/01/2016,145268,146.36,BRITISH TELECOMMUNICATIONS,X00004,10,2015
Allerdale Borough Council,12402,Premises,Corporate Property Maintenance,Electricity,06/01/2016,145269,4163.98,N POWER,X00015,10,2015
Allerdale Borough Council,15604,Supplies & Services,Document Management Pay Group,Franking Machine refills,06/01/2016,145270,40,ROYAL MAIL LETTERS,X00021,10,2015
Allerdale Borough Council,15703,Supplies & Services,Silloth TIC,Call Charges,06/01/2016,145271,1264.58,BRITISH TELECOMMUNICATIONS,X00004,10,2015
Allerdale Borough Council,12402,Premises,Corporate Property Maintenance,Electricity,06/01/2016,145272,4.58,BRITISH GAS,X00039,10,2015
Allerdale Borough Council,12403,Premises,Corporate Property Maintenance,Gas,06/01/2016,145273,297.91,BRITISH GAS,X00039,10,2015
Allerdale Borough Council,12101,Premises,Corporate Property Maintenance,External Maintenance & Decoration,06/01/2016,145274,251.28,DESIGN GRID LTD,A01627,10,2015
Allerdale Borough Council,12101,Premises,Corporate Property Maintenance,External Maintenance & Decoration,06/01/2016,145275,-251.28,DESIGN GRID LTD,A01627,10,2015
Allerdale Borough Council,15514,Supplies & Services,Mayor's Fund,Public Entertainment,29/01/2016,145276,14.78,BARCLAYCARD COMMERCIAL,X00207,10,2015
Allerdale Borough Council,15201,Supplies & Services,Leaders Services,Entertainment Of Visitors,29/01/2016,145277,130.58,BARCLAYCARD COMMERCIAL,X00207,10,2015
Allerdale Borough Council,15505,Supplies & Services,Legal Services,Licences,29/01/2016,145278,704,BARCLAYCARD COMMERCIAL,X00207,10,2015
Allerdale Borough Council,16309,Supplies & Services,Flood Costs 2015,General - Flooding,,145279,1177.66,BARCLAYCARD COMMERCIAL,X00207,10,2015
Allerdale Borough Council,15203,Supplies & Services,Solway Coast AONB Core Funding,Catering Costs and Consumables,06/01/2016,145280,81.67,THE GOLF HOTEL,A00749,10,2015
Allerdale Borough Council,21150,Transfer Payments,Festivals & Events,General Grants,06/01/2016,145281,2000,MARYPORT T.C.,X00086,10,2015
Allerdale Borough Council,54105,Capital Expenditure,Disabled Facilities Grants,Grants  Private Individuals (Capital),06/01/2016,145282,3566.7,MAYSON BROS LTD,X00132,10,2015
Allerdale Borough Council,12202,Premises,Corporate Property Maintenance,Electrical Repairs and Service,06/01/2016,145283,21.42,EDMUNDSON ELECTRICAL LTD,A00304,10,2015
Allerdale Borough Council,10401,Employee Costs,Building Control - Chargeable,Agency Staff Costs,13/01/2016,145284,90,THE OYSTER PARTNERSHIP LTD,C00118,10,2015
Allerdale Borough Council,15302,Supplies & Services,Solway Coast AONB Core Funding,Protective Clothing,13/01/2016,145285,289.57,THE OUTDOORS COMPANY,A01066,10,2015
Allerdale Borough Council,12202,Premises,Corporate Property Maintenance,Electrical Repairs and Service,06/01/2016,145286,847.2,J & J ELECTRICAL (CUMBRIA) LTD,C00038,10,2015
Allerdale Borough Council,15808,Supplies & Services,Multi-functional Printers,Computer Consumables,06/01/2016,145287,422,ANTALIS LIMITED,A00122,10,2015
Allerdale Borough Council,99999,Not Applicable,9599,Systems Suspense,06/01/2016,145288,221.83,ARCO LIMITED - HEAD OFFICE HULL,A00045,10,2015
Allerdale Borough Council,15604,Supplies & Services,Document Management Pay Group,Franking Machine refills,06/01/2016,145289,10000,FP TELESET,A00428,10,2015
Allerdale Borough Council,16150,Supplies & Services,Town Centre Management,General Promotions,06/01/2016,145290,250,CUMBRIAN NEWSPAPERS LIMITED,A00869,10,2015
Allerdale Borough Council,33113,Income,Building Control - Chargeable,Building Control Fees Income,06/01/2016,145291,143.9,Redacted information - included personal information ,M00828,10,2015
Allerdale Borough Council,10401,Employee Costs,IT - New Initiatives,Agency Staff Costs,06/01/2016,145292,650,HAYS SPECIALIST RECRUITMENT LTD,A00280,10,2015
Allerdale Borough Council,10401,Employee Costs,IT - New Initiatives,Agency Staff Costs,06/01/2016,145293,975,HAYS SPECIALIST RECRUITMENT LTD,A00280,10,2015
Allerdale Borough Council,16309,Supplies & Services,Flood Costs 2015,General - Flooding,06/01/2016,145294,229.9,G & M SUPPLIES,A00033,10,2015
Allerdale Borough Council,10401,Employee Costs,IT - New Initiatives,Agency Staff Costs,13/01/2016,145295,812.5,HAYS SPECIALIST RECRUITMENT LTD,A00280,10,2015
Allerdale Borough Council,16001,Supplies & Services,Banking and Interest,Bank Charges and Fees,06/01/2016,145296,15.25,ALLPAY.NET LIMITED,A00714,10,2015
Allerdale Borough Council,16001,Supplies & Services,Banking and Interest,Bank Charges and Fees,06/01/2016,145297,16.58,ALLPAY.NET LIMITED,A00714,10,2015
Allerdale Borough Council,16001,Supplies & Services,Banking and Interest,Bank Charges and Fees,06/01/2016,145298,21.05,ALLPAY.NET LIMITED,A00714,10,2015
Allerdale Borough Council,16001,Supplies & Services,Banking and Interest,Bank Charges and Fees,06/01/2016,145299,19.98,ALLPAY.NET LIMITED,A00714,10,2015
Allerdale Borough Council,16001,Supplies & Services,Banking and Interest,Bank Charges and Fees,06/01/2016,145300,33.33,ALLPAY.NET LIMITED,A00714,10,2015
Allerdale Borough Council,16001,Supplies & Services,Banking and Interest,Bank Charges and Fees,06/01/2016,145301,15.25,ALLPAY.NET LIMITED,A00714,10,2015
Allerdale Borough Council,16001,Supplies & Services,Banking and Interest,Bank Charges and Fees,06/01/2016,145302,25.16,ALLPAY.NET LIMITED,A00714,10,2015
Allerdale Borough Council,16001,Supplies & Services,Banking and Interest,Bank Charges and Fees,06/01/2016,145303,1497.96,ALLPAY.NET LIMITED,A00714,10,2015
Allerdale Borough Council,16001,Supplies & Services,Banking and Interest,Bank Charges and Fees,06/01/2016,145304,69.16,ALLPAY.NET LIMITED,A00714,10,2015
Allerdale Borough Council,16001,Supplies & Services,Banking and Interest,Bank Charges and Fees,06/01/2016,145305,40.23,ALLPAY.NET LIMITED,A00714,10,2015
Allerdale Borough Council,10401,Employee Costs,IT - New Initiatives,Agency Staff Costs,13/01/2016,145306,975,HAYS SPECIALIST RECRUITMENT LTD,A00280,10,2015
Allerdale Borough Council,10501,Employee Costs,Corporate Recruitment,Advertising Vacancies,06/01/2016,145307,718.32,CUMBRIA CC - 3C STUDIO,A00070,10,2015
Allerdale Borough Council,10501,Employee Costs,Corporate Recruitment,Advertising Vacancies,06/01/2016,145308,718.32,CUMBRIA CC - 3C STUDIO,A00070,10,2015
Allerdale Borough Council,16309,Supplies & Services,Flood Costs 2015,General - Flooding,,145310,275.19,BARCLAYCARD COMMERCIAL ,X00207,10,2015
Allerdale Borough Council,16350,Supplies & Services,Chief Executive,Miscellaneous Expenses,,145311,255,BARCLAYCARD COMMERCIAL ,X00207,10,2015
Allerdale Borough Council,15850,Supplies & Services,IT Services,General Computer Costs,29/01/2016,145312,183.94,BARCLAYCARD COMMERCIAL ,X00207,10,2015
Allerdale Borough Council,15850,Supplies & Services,IT Services,General Computer Costs,,145313,125.5,BARCLAYCARD COMMERCIAL ,X00207,10,2015
Allerdale Borough Council,12405,Premises,Multi-storey Car Park,Rentals and Lease Charges,13/01/2016,145314,62602.2,SCOOP AM LLP,A02086,10,2015
Allerdale Borough Council,20150,Third Party Payments,Multi-storey Car Park,General Partnership Service Fees,13/01/2016,145315,53559.2,PARKSAFE,A00647,10,2015
Allerdale Borough Council,15704,Supplies & Services,IT Services,Mobile Phones,13/01/2016,145316,1176.51,VODAFONE,A00551,10,2015
Allerdale Borough Council,15600,Supplies & Services,Electoral Registration,Budget-Postal Services,13/01/2016,145317,56.11,ROYAL MAIL LETTERS,X00021,10,2015
Allerdale Borough Council,35106,Income,Homelessness,Dwellings Income,13/01/2016,145318,46.02,ALLERDALE,A00342,10,2015
Allerdale Borough Council,35106,Income,Homelessness,Dwellings Income,13/01/2016,145319,66.88,ALLERDALE,A00342,10,2015
Allerdale Borough Council,15703,Supplies & Services,IT Services,Call Charges,20/01/2016,145320,923.18,VODAFONE (PREV CABLE & WIRELESS),A00934,10,2015
Allerdale Borough Council,12301,Premises,Crime Prevention,Security,13/01/2016,145321,74.91,BRITISH TELECOMMUNICATIONS,X00004,10,2015
Allerdale Borough Council,12402,Premises,Corporate Property Maintenance,Electricity,13/01/2016,145322,13.05,EON,X00016,10,2015
Allerdale Borough Council,15803,Supplies & Services,Business Continuity,Hardware Purchase,13/01/2016,145323,1295.96,CONNEXIONS GROUP LTD,C00060,10,2015
Allerdale Borough Council,15103,Supplies & Services,Solway Wetlands Project,Purchase of Materials,13/01/2016,145324,10.88,YORKSHIRE PURCHASING ORGANISATION,A00747,10,2015
Allerdale Borough Council,15101,Supplies & Services,Solway Wetlands Project,Equipment Costs,13/01/2016,145325,50,THOMAS ARMSTRONG - LINDEN/KAYTOOLS,A00091,10,2015
Allerdale Borough Council,16150,Supplies & Services,Solway Wetlands Project,General Promotions,13/01/2016,145326,450,ARCHITECTS PLUS (UK) LTD,A02247,10,2015
Allerdale Borough Council,10401,Employee Costs,Licensing Pay Group,Agency Staff Costs,13/01/2016,145327,432.53,ADECCO RECRUITMENT,A00188,10,2015
Allerdale Borough Council,16150,Supplies & Services,Solway Wetlands Project,General Promotions,13/01/2016,145328,85,CUMBRIA LOOS,A00217,10,2015
Allerdale Borough Council,14202,Transport,Housing & Health Pay Group,Hire Car and petrol,13/01/2016,145329,27.29,ENTERPRISE RENT A CAR,A01367,10,2015
Allerdale Borough Council,10100,Employee Costs,Customer Services Pay Group,Budget-Salaries,13/01/2016,145330,343.51,ADECCO RECRUITMENT,A00188,10,2015
Allerdale Borough Council,16003,Supplies & Services,Customer Services Pay Group,Security of Cash Movements,27/01/2016,145331,448.17,SECURITY PLUS LIMITED,A00503,10,2015
Allerdale Borough Council,16305,Supplies & Services,Flood Costs 2015,Assest Management Costs - Flooding,13/01/2016,145332,420,Redacted information - included personal information ,C00008,10,2015
Allerdale Borough Council,10601,Employee Costs,Training,External Courses & Seminar Fees,13/01/2016,145333,480,CARLISLE CITY COUNCIL,A00161,10,2015
Allerdale Borough Council,15506,Supplies & Services,Environmental Protection,Professional Services,13/01/2016,145334,100,CUMBRIA WASTE MANAGEMENT LTD,A01304,10,2015
Allerdale Borough Council,15506,Supplies & Services,Environmental Protection,Professional Services,13/01/2016,145335,100,CUMBRIA WASTE MANAGEMENT LTD,A01304,10,2015
Allerdale Borough Council,15550,Supplies & Services,Out of Hours Telephones,General-Service Related Fees,27/01/2016,145336,1733.95,ORBIS PROTECT LTD (PREV SITEXORBIS LIMITED),A00679,10,2015
Allerdale Borough Council,15506,Supplies & Services,Environmental Protection,Professional Services,13/01/2016,145337,100,CUMBRIA WASTE MANAGEMENT LTD,A01304,10,2015
Allerdale Borough Council,16305,Supplies & Services,Flood Costs 2015,Assest Management Costs - Flooding,13/01/2016,145338,240,JOHN ELLIOTT LIMITED,C00023,10,2015
Allerdale Borough Council,15401,Supplies & Services,Document Management Pay Group,General Stationery,27/01/2016,145339,161.25,LYRECO,A00043,10,2015
Allerdale Borough Council,15401,Supplies & Services,Document Management Pay Group,General Stationery,27/01/2016,145340,150.77,LYRECO,A00043,10,2015
Allerdale Borough Council,51101,Capital Expenditure,New Leisure Facility,External Contractor Payments (Capital),13/01/2016,145341,927324.4,WILLMOTT DIXON CAPITAL WORKS LTD,C00127,10,2015
Allerdale Borough Council,12202,Premises,Corporate Property Maintenance,Electrical Repairs and Service,20/01/2016,145342,20.08,EDMUNDSON ELECTRICAL LTD,A00304,10,2015
Allerdale Borough Council,15811,Supplies & Services,Shared Revs & Bens IT Costs,Software Maintenance,13/01/2016,145343,913.36,CIVICA UK LIMITED,A00006,10,2015
Allerdale Borough Council,73102,Holding and Control Accounts,Busy Bees Childcare Scheme,Holding Accounts General - Expenditure,20/01/2016,145344,95.67,COMPUTERSHARE VOUCHER SERVICES,A00991,10,2015
Allerdale Borough Council,73102,Holding and Control Accounts,Busy Bees Childcare Scheme,Holding Accounts General - Expenditure,20/01/2016,145345,1739.5,COMPUTERSHARE VOUCHER SERVICES,A00991,10,2015
Allerdale Borough Council,20100,Third Party Payments,Community Safety,Budget-Partnership Services,13/01/2016,145346,2920,PM SECURITY,A02111,10,2015
Allerdale Borough Council,16101,Supplies & Services,Licensing Service,Statutory Notices,13/01/2016,145347,62.34,CUMBRIA CC - 3C STUDIO,A00070,10,2015
Allerdale Borough Council,12307,Premises,Corporate Property Maintenance,Fixtures and Fittings,27/01/2016,145348,421.86,EXPRESS ELEVATORS LTD,A00717,10,2015
Allerdale Borough Council,14104,Transport,Public Convenience Cleaning,Repairs & Maintenance,13/01/2016,145349,98.34,GOODFELLOW & SONS,A00031,10,2015
Allerdale Borough Council,14104,Transport,Public Convenience Cleaning,Repairs & Maintenance,13/01/2016,145350,83.33,GOODFELLOW & SONS,A00031,10,2015
Allerdale Borough Council,12403,Premises,Homelessness,Gas,13/01/2016,145351,88,MEPOS LIMITED,A01286,10,2015
Allerdale Borough Council,12101,Premises,Corporate Property Maintenance,External Maintenance & Decoration,13/01/2016,145352,140,THE POLICE & CRIME COMMISSIONER FOR CUMBRIA,M00443,10,2015
Allerdale Borough Council,15508,Supplies & Services,IT Services,Subscriptions,13/01/2016,145353,890,SOCITM LTD,A00168,10,2015
Allerdale Borough Council,15505,Supplies & Services,Legal Services,Licences,13/01/2016,145354,5120,SWEET & MAXWELL (THOMSON REUTERS),A00028,10,2015
Allerdale Borough Council,15403,Supplies & Services,Communications and Marketing,Publications and Periodicals,13/01/2016,145355,88.2,P & D NEWSAGENTS,A00237,10,2015
Allerdale Borough Council,14202,Transport,Customer & Transformation Programme,Hire Car and petrol,13/01/2016,145356,87.12,EILBECK RENTAL,A01161,10,2015
Allerdale Borough Council,15203,Supplies & Services,Solway Wetlands Project,Catering Costs and Consumables,13/01/2016,145357,310,YUMMIEZ LIMITED,A02095,10,2015
Allerdale Borough Council,14202,Transport,Solway Wetlands Project,Hire Car and petrol,13/01/2016,145358,40.65,ENTERPRISE RENT A CAR,A01367,10,2015
Allerdale Borough Council,15404,Supplies & Services,Building Control - Chargeable,Reference Materials,13/01/2016,145359,350.45,LEXISNEXIS BUTTERWORTHS,A00356,10,2015
Allerdale Borough Council,14202,Transport,Director of Resources & PA,Hire Car and petrol,13/01/2016,145360,130.47,ENTERPRISE RENT A CAR,A01367,10,2015
Allerdale Borough Council,14202,Transport,Chief Executive,Hire Car and petrol,13/01/2016,145361,272.45,ENTERPRISE RENT A CAR,A01367,10,2015
Allerdale Borough Council,14202,Transport,Chief Executive,Hire Car and petrol,13/01/2016,145362,276.26,ENTERPRISE RENT A CAR,A01367,10,2015
Allerdale Borough Council,33112,Income,Planning and Development,Planning Fees Income,13/01/2016,145363,97.5,MARYPORT T.C.,X00086,10,2015
Allerdale Borough Council,21150,Transfer Payments,Museums,General Grants,13/01/2016,145364,250,NATIONAL TRUST,M00829,10,2015
Allerdale Borough Council,21150,Transfer Payments,Arts Development,General Grants,13/01/2016,145365,50,COCKERMOUTH BY CANDLELIGHT,M00811,10,2015
Allerdale Borough Council,21150,Transfer Payments,Leisure Activities,General Grants,13/01/2016,145366,4500,COCKERMOUTH CRICKET CLUB,M00830,10,2015
Allerdale Borough Council,15502,Supplies & Services,Legal Services,Land Registry Fees,12/01/2016,145367,45,HM LAND REGISTRY,A00505,10,2015
Allerdale Borough Council,54102,Capital Expenditure,Cluster of Empty Homes,Grants Commercial Organisations (Capital,13/01/2016,145368,1000,FULTONS PROPERTIES LIMITED,X00238,10,2015
Allerdale Borough Council,54105,Capital Expenditure,Disabled Facilities Grants,Grants  Private Individuals (Capital),13/01/2016,145369,1285,THYSSEN KRUPP ENCASA A DIVISION OF THYSSENKRUPP LIMITED,X00105,10,2015
Allerdale Borough Council,54105,Capital Expenditure,Disabled Facilities Grants,Grants  Private Individuals (Capital),13/01/2016,145370,14812,THYSSEN KRUPP ENCASA A DIVISION OF THYSSENKRUPP LIMITED,X00105,10,2015
Allerdale Borough Council,54105,Capital Expenditure,Disabled Facilities Grants,Grants  Private Individuals (Capital),13/01/2016,145371,999.87,THYSSEN KRUPP ENCASA A DIVISION OF THYSSENKRUPP LIMITED,X00105,10,2015
Allerdale Borough Council,54105,Capital Expenditure,Disabled Facilities Grants,Grants  Private Individuals (Capital),13/01/2016,145372,6280,K BAILIFF & SON LIMITED,X00116,10,2015
Allerdale Borough Council,54105,Capital Expenditure,Disabled Facilities Grants,Grants  Private Individuals (Capital),13/01/2016,145373,2861.41,PARTNERSHIP IN PROPERTY MANAGEMENT LTD,X00120,10,2015
Allerdale Borough Council,15101,Supplies & Services,Homelessness,Equipment Costs,13/01/2016,145374,63.45,ALLERDALE BOROUGH COUNCIL,X00034,10,2015
Allerdale Borough Council,16101,Supplies & Services,Planning and Development,Statutory Notices,13/01/2016,145375,163.61,CUMBRIAN NEWSPAPERS LIMITED,A00869,10,2015
Allerdale Borough Council,16101,Supplies & Services,Planning and Development,Statutory Notices,13/01/2016,145376,225.52,CUMBRIAN NEWSPAPERS LIMITED,A00869,10,2015
Allerdale Borough Council,15400,Supplies & Services,Head of Service - PA Pay Group,"Budget-Printing,Stationery & Office Supp",13/01/2016,145377,60,FIRPRESS PRINTERS,A00063,10,2015
Allerdale Borough Council,16001,Supplies & Services,Banking and Interest,Bank Charges and Fees,27/01/2016,145378,15.86,ALLPAY.NET LIMITED,A00714,10,2015
Allerdale Borough Council,16001,Supplies & Services,Banking and Interest,Bank Charges and Fees,27/01/2016,145379,15.25,ALLPAY.NET LIMITED,A00714,10,2015
Allerdale Borough Council,16001,Supplies & Services,Banking and Interest,Bank Charges and Fees,27/01/2016,145380,15.25,ALLPAY.NET LIMITED,A00714,10,2015
Allerdale Borough Council,16001,Supplies & Services,Banking and Interest,Bank Charges and Fees,27/01/2016,145381,19.37,ALLPAY.NET LIMITED,A00714,10,2015
Allerdale Borough Council,16001,Supplies & Services,Banking and Interest,Bank Charges and Fees,27/01/2016,145382,18.7,ALLPAY.NET LIMITED,A00714,10,2015
Allerdale Borough Council,16001,Supplies & Services,Banking and Interest,Bank Charges and Fees,27/01/2016,145383,22.56,ALLPAY.NET LIMITED,A00714,10,2015
Allerdale Borough Council,16001,Supplies & Services,Banking and Interest,Bank Charges and Fees,27/01/2016,145384,29.45,ALLPAY.NET LIMITED,A00714,10,2015
Allerdale Borough Council,16001,Supplies & Services,Banking and Interest,Bank Charges and Fees,27/01/2016,145385,28.17,ALLPAY.NET LIMITED,A00714,10,2015
Allerdale Borough Council,16001,Supplies & Services,Banking and Interest,Bank Charges and Fees,27/01/2016,145386,1538.21,ALLPAY.NET LIMITED,A00714,10,2015
Allerdale Borough Council,16001,Supplies & Services,Banking and Interest,Bank Charges and Fees,27/01/2016,145387,66.05,ALLPAY.NET LIMITED,A00714,10,2015
Allerdale Borough Council,15201,Supplies & Services,Leaders Services,Entertainment Of Visitors,13/01/2016,145388,52.23,ALLERDALE BOROUGH COUNCIL,X00034,10,2015
Allerdale Borough Council,15403,Supplies & Services,Solway Coast AONB Core Funding,Publications and Periodicals,13/01/2016,145389,90.73,ALLERDALE BOROUGH COUNCIL - AONB,X00216,10,2015
Allerdale Borough Council,14105,Transport,Public Convenience Cleaning,"Fuel, Lubricants & Consumables",01/02/2016,145390,34.59,BP OIL UK LTD ,X00022,10,2015
Allerdale Borough Council,14105,Transport,Parking Services Pay Group,"Fuel, Lubricants & Consumables",29/01/2016,145391,514.72,BP OIL UK LTD ,X00022,10,2015
Allerdale Borough Council,14105,Transport,Parking Services Pay Group,"Fuel, Lubricants & Consumables",29/01/2016,145392,313.25,BP OIL UK LTD ,X00022,10,2015
Allerdale Borough Council,15501,Supplies & Services,Estates,Consultants Fees,03/02/2016,145393,960,HAYS SPECIALIST RECRUITMENT LTD,A00280,10,2015
Allerdale Borough Council,15500,Supplies & Services,Economic Regeneration,Budget-Services,20/01/2016,145394,330,BRIT ENERGY COAST BUSINESS CLUSTER,A01648,10,2015
Allerdale Borough Council,14105,Transport,Solway Coast AONB Core Funding,"Fuel, Lubricants & Consumables",01/02/2016,145395,637.71,BP OIL UK LTD ,X00022,10,2015
Allerdale Borough Council,14105,Transport,Parking Services Pay Group,"Fuel, Lubricants & Consumables",01/02/2016,145396,328.95,BP OIL UK LTD ,X00022,10,2015
Allerdale Borough Council,14105,Transport,Solway Coast AONB Core Funding,"Fuel, Lubricants & Consumables",21/12/2015,145397,623.33,BP OIL UK LTD ,X00022,10,2015
Allerdale Borough Council,14105,Transport,Parking Services Pay Group,"Fuel, Lubricants & Consumables",01/02/2016,145398,268.38,BP OIL UK LTD ,X00022,10,2015
Allerdale Borough Council,15503,Supplies & Services,Legal Services,Court and Tribunal Costs,29/01/2016,145399,110,HM COURTS & TRIBUNAL SERVICE,A02221,10,2015
Allerdale Borough Council,12301,Premises,Crime Prevention,Security,20/01/2016,145400,131.52,EON,X00017,10,2015
Allerdale Borough Council,12402,Premises,Corporate Property Maintenance,Electricity,20/01/2016,145401,451.32,N POWER ,X00015,10,2015
Allerdale Borough Council,15101,Supplies & Services,Solway Wetlands Project,Equipment Costs,20/01/2016,145402,236.2,WILDCARE,A01769,10,2015
Allerdale Borough Council,15101,Supplies & Services,Solway Wetlands Project,Equipment Costs,20/01/2016,145403,213.15,YORKSHIRE PURCHASING ORGANISATION,A00747,10,2015
Allerdale Borough Council,12309,Premises,Corporate Property Maintenance,Fire and Safety,20/01/2016,145404,35,PRO-TEC SYSTEMS,C00026,10,2015
Allerdale Borough Council,12301,Premises,Corporate Property Maintenance,Security,20/01/2016,145405,105,PRO-TEC SYSTEMS,C00026,10,2015
Allerdale Borough Council,12305,Premises,Corporate Property Maintenance,Inspections and Services,20/01/2016,145406,113.76,PRO-TEC SYSTEMS,C00026,10,2015
Allerdale Borough Council,15804,Supplies & Services,IT Services,Computer Data Lines B.T.,27/01/2016,145407,3009.13,VODAFONE (PREV CABLE & WIRELESS),A00934,10,2015
Allerdale Borough Council,15805,Supplies & Services,IT Services,Computer Network,27/01/2016,145408,50,VODAFONE (PREV CABLE & WIRELESS),A00934,10,2015
Allerdale Borough Council,15805,Supplies & Services,IT Services,Computer Network,10/02/2016,145409,60,THUS/DEMON PLC/ (VODAFONE),A00598,10,2015
Allerdale Borough Council,10401,Employee Costs,New IT Initiatives,Agency Staff Costs,20/01/2016,145410,2250,COMPUTER FUTURES,A02193,10,2015
Allerdale Borough Council,10401,Employee Costs,New IT Initiatives,Agency Staff Costs,20/01/2016,145411,4500,COMPUTER FUTURES,A02193,10,2015
Allerdale Borough Council,10401,Employee Costs,New IT Initiatives,Agency Staff Costs,20/01/2016,145412,2250,COMPUTER FUTURES,A02193,10,2015
Allerdale Borough Council,15401,Supplies & Services,Planning and Development,General Stationery,20/01/2016,145413,55,HEATONS OFFICE SOLUTION (PREV LAKELAND/INTEGRITY),A00069,10,2015
Allerdale Borough Council,16101,Supplies & Services,Planning and Development,Statutory Notices,20/01/2016,145414,504.41,CUMBRIA CC - 3C STUDIO,A00070,10,2015
Allerdale Borough Council,16101,Supplies & Services,Planning and Development,Statutory Notices,20/01/2016,145415,408.39,CUMBRIA CC - 3C STUDIO,A00070,10,2015
Allerdale Borough Council,15505,Supplies & Services,Planning and Development,Licences,27/01/2016,145416,11.85,CENTREMAPS,A00512,10,2015
Allerdale Borough Council,10401,Employee Costs,New IT Initiatives,Agency Staff Costs,20/01/2016,145417,2100,COMPUTER FUTURES,A02193,10,2015
Allerdale Borough Council,10401,Employee Costs,New IT Initiatives,Agency Staff Costs,20/01/2016,145418,2055,COMPUTER FUTURES,A02193,10,2015
Allerdale Borough Council,15501,Supplies & Services,Corporate Management,Consultants Fees,20/01/2016,145419,537.05,GABY PORTER & ASSOCIATES,A02177,10,2015
Allerdale Borough Council,15702,Supplies & Services,Street Cleansing,Line Rentals,20/01/2016,145420,87.84,BRITISH TELECOMMUNICATIONS,X00004,10,2015
Allerdale Borough Council,15501,Supplies & Services,Planning Policy,Consultants Fees,20/01/2016,145421,4930,TULLIE HOUSE MUSEUM & ART GALLERY TRUST,A01238,10,2015
Allerdale Borough Council,52106,Capital Expenditure,New Leisure Facility,Consultants Fees (Capital),20/01/2016,145422,5531.59,PICK EVERARD,A02007,10,2015
Allerdale Borough Council,20150,Third Party Payments,Building Control - Non-Chargeable,General Partnership Service Fees,20/01/2016,145423,234,ISAAC & ROBIN HODGSON LTD,X00172,10,2015
Allerdale Borough Council,12103,Premises,Coastal Protection and Inland Flooding,Grounds Maintenance,20/01/2016,145424,1450,ENGINEERING (BARB) PIPEWORKS,A00903,10,2015
Allerdale Borough Council,20101,Third Party Payments,Public Convenience Cleaning,Cleansing Contract,20/01/2016,145425,200,J STRONG & SON,A00209,10,2015
Allerdale Borough Council,20100,Third Party Payments,Parking Services Pay Group,Budget-Partnership Services,,145426,227.2,PATROL,A00952,10,2015
Allerdale Borough Council,16102,Supplies & Services,Town Centres,Regeneration Initiatives,20/01/2016,145427,980,BROXAP LIMITED,C00048,10,2015
Allerdale Borough Council,16150,Supplies & Services,Town Centre Management,General Promotions,20/01/2016,145428,625,FLAME CONCEPTS LTD,A01903,10,2015
Allerdale Borough Council,16102,Supplies & Services,Town Centres,Regeneration Initiatives,20/01/2016,145429,1450,W S REID LTD,X00202,10,2015
Allerdale Borough Council,16150,Supplies & Services,Solway Wetlands Project,General Promotions,20/01/2016,145430,120,CHERRY TREE GIFTS LTD,A02235,10,2015
Allerdale Borough Council,15811,Supplies & Services,IT Services,Software Maintenance,29/01/2016,145431,264.99,SAGE (UK) LTD,A01911,10,2015
Allerdale Borough Council,15811,Supplies & Services,IT Services,Software Maintenance,18/01/2016,145432,264.99,SAGE (UK) LTD,A01911,10,2015
Allerdale Borough Council,15203,Supplies & Services,Members Services,Catering Costs and Consumables,20/01/2016,145433,239.85,SIEMENS FINANCIAL SERVICES,A01307,10,2015
Allerdale Borough Council,15303,Supplies & Services,Food and Occupational Health,Laundry,20/01/2016,145434,83.93,BERENDSEN UK LTD,A00027,10,2015
Allerdale Borough Council,15203,Supplies & Services,Members Services,Catering Costs and Consumables,20/01/2016,145435,58.5,MAGGIES BAKERY,A01685,10,2015
Allerdale Borough Council,15506,Supplies & Services,Environmental Protection,Professional Services,20/01/2016,145436,483.4,UNITED UTILITIES PLC,A01657,10,2015
Allerdale Borough Council,81602,Balance Sheet,General Fund,Prov-Insurance Excess (Balance Sheet),20/01/2016,145437,5185.5,ZURICH MUNICIPAL,A00429,10,2015
Allerdale Borough Council,15508,Supplies & Services,IT Services,Subscriptions,20/01/2016,145438,550,IT SERVICE MGT FORUM (ITSMF) LTD,A00984,10,2015
Allerdale Borough Council,12305,Premises,Corporate Property Maintenance,Inspections and Services,20/01/2016,145439,250,WEST COAST SURVEYS LTD,A00154,10,2015
Allerdale Borough Council,15508,Supplies & Services,Corporate Improvement Team,Subscriptions,27/01/2016,145440,2345,LOCAL INFORMATION UNIT LTD,A01881,10,2015
Allerdale Borough Council,15501,Supplies & Services,Building Control - Chargeable,Consultants Fees,20/01/2016,145441,600,CAINE CONSULTING ENGINEERS,A00730,10,2015
Allerdale Borough Council,10401,Employee Costs,Building Control - Chargeable,Agency Staff Costs,10/02/2016,145442,45,THE OYSTER PARTNERSHIP LTD,C00118,10,2015
Allerdale Borough Council,16306,Supplies & Services,Flood Costs 2015,Environmental costs - Flooding,03/02/2016,145443,7656,PLASTIC OMNIUM URBAN SYSTEMS LTD,A00159,10,2015
Allerdale Borough Council,15808,Supplies & Services,IT Services,Computer Consumables,10/02/2016,145444,249.09,MISCO,A00125,10,2015
Allerdale Borough Council,15103,Supplies & Services,Off-street - Owned,Purchase of Materials,27/01/2016,145445,379,FIRPRESS PRINTERS,A00063,10,2015
Allerdale Borough Council,15103,Supplies & Services,Recycling,Purchase of Materials,03/02/2016,145446,2329.3,EGBERT H TAYLOR & COMPANY LTD,A01706,10,2015
Allerdale Borough Council,12201,Premises,Homelessness,Internal Maintenance,27/01/2016,145447,583.25,DERWENT & SOLWAY ,A00219,10,2015
Allerdale Borough Council,12101,Premises,Corporate Property Maintenance,External Maintenance & Decoration,20/01/2016,145448,655.3,BOWLAND TREE CONSULTANCY LTD,A02286,10,2015
Allerdale Borough Council,15501,Supplies & Services,Homelessness,Consultants Fees,20/01/2016,145449,50,JAMES STREET GROUP PRACTICE,A00462,10,2015
Allerdale Borough Council,20150,Third Party Payments,Footway Lighting Scheme,General Partnership Service Fees,03/02/2016,145450,0.01,ELECTRICITY NORTH WEST LTD,A00471,10,2015
Allerdale Borough Council,12203,Premises,Public Convenience Cleaning,Plumbing and Heating Maintenance,20/01/2016,145451,1014,Redacted information - included personal information ,C00008,10,2015
Allerdale Borough Council,15101,Supplies & Services,Public Convenience Cleaning,Equipment Costs,20/01/2016,145452,151.48,WF HYGIENE & CLEANING SUPPLIES,A01794,10,2015
Allerdale Borough Council,15802,Supplies & Services,IT Services,Hardware Maintenance,10/02/2016,145453,2611.07,NETCENTRIX LIMITED,A00106,10,2015
Allerdale Borough Council,12305,Premises,Corporate Property Maintenance,Inspections and Services,20/01/2016,145454,60,PFK PLC LAND AGENCY,A00954,10,2015
Allerdale Borough Council,15404,Supplies & Services,Legal Services,Reference Materials,20/01/2016,145455,284,SWEET & MAXWELL (THOMSON REUTERS),A00028,10,2015
Allerdale Borough Council,16306,Supplies & Services,Flood Costs 2015,Environmental costs - Flooding,20/01/2016,145456,11590.38,PLASTIC OMNIUM URBAN SYSTEMS LTD,A00159,10,2015
Allerdale Borough Council,16306,Supplies & Services,Flood Costs 2015,Environmental costs - Flooding,20/01/2016,145457,350,W G MACKAY LTD,A01711,10,2015
Allerdale Borough Council,15502,Supplies & Services,Legal Services,Land Registry Fees,15/01/2016,145458,165,HM LAND REGISTRY,A00505,10,2015
Allerdale Borough Council,15502,Supplies & Services,Legal Services,Land Registry Fees,19/01/2016,145459,6,HM LAND REGISTRY,A00505,10,2015
Allerdale Borough Council,14101,Transport,Mayoral Services,Vehicle Leasing,20/01/2016,145460,30,ACE TAXIS,A01927,10,2015
Allerdale Borough Council,20110,Third Party Payments,Corporate Improvement Team,Other Local Authorities,20/01/2016,145461,841.43,CUMBRIA CC - GENERAL,A00066,10,2015
Allerdale Borough Council,14101,Transport,Mayoral Services,Vehicle Leasing,20/01/2016,145462,90,ACE TAXIS,A01927,10,2015
Allerdale Borough Council,14101,Transport,Mayoral Services,Vehicle Leasing,20/01/2016,145463,90,ACE TAXIS,A01927,10,2015
Allerdale Borough Council,54105,Capital Expenditure,Disabled Facilities Grants,Grants  Private Individuals (Capital),20/01/2016,145464,775,CONISTON CONSULTANTS LTD,X00210,10,2015
Allerdale Borough Council,54105,Capital Expenditure,Disabled Facilities Grants,Grants  Private Individuals (Capital),20/01/2016,145465,2515,BLUE FLAME SERVICES LTD,X00213,10,2015
Allerdale Borough Council,10202,Employee Costs,Human Resources Pay Group,Medical Screening,,145466,61.8,WELLWORK LTD,A00029,10,2015
Allerdale Borough Council,10601,Employee Costs,Training,External Courses & Seminar Fees,20/01/2016,145467,195,INSTITUTE OF LICENSING (EVENTS) LTD,A00315,10,2015
Allerdale Borough Council,10601,Employee Costs,Training,External Courses & Seminar Fees,20/01/2016,145468,260,NORTH WEST EMPLOYERS,A00139,10,2015
Allerdale Borough Council,10501,Employee Costs,Corporate Recruitment,Advertising Vacancies,03/02/2016,145469,800,JGP RESOURCING,A02244,10,2015
Allerdale Borough Council,15501,Supplies & Services,Estates,Consultants Fees,10/02/2016,145470,1612.15,HAYS SPECIALIST RECRUITMENT LTD,A00280,10,2015
Allerdale Borough Council,20101,Third Party Payments,Recycling,Cleansing Contract,20/01/2016,145471,303.74,CUMBRIA WASTE MANAGEMENT LTD,A01304,10,2015
Allerdale Borough Council,20101,Third Party Payments,Recycling,Cleansing Contract,20/01/2016,145472,1035.72,CUMBRIA WASTE MANAGEMENT LTD,A01304,10,2015
Allerdale Borough Council,20101,Third Party Payments,Recycling,Cleansing Contract,20/01/2016,145473,527.94,CUMBRIA WASTE MANAGEMENT LTD,A01304,10,2015
Allerdale Borough Council,16306,Supplies & Services,Flood Costs 2015,Environmental costs - Flooding,10/02/2016,145474,3806.4,PLASTIC OMNIUM URBAN SYSTEMS LTD,A00159,10,2015
Allerdale Borough Council,15506,Supplies & Services,Legal Services,Professional Services,20/01/2016,145475,435,BEVAN BRITTAN LLP,A02181,10,2015
Allerdale Borough Council,15803,Supplies & Services,IT Services,Hardware Purchase,,145476,458.06,MISCO,A00125,10,2015
Allerdale Borough Council,15813,Supplies & Services,Shared ICT Costs,Software Miscellaneous,20/01/2016,145477,3062.5,SSL TRACKER LIMITED,A01829,10,2015
Allerdale Borough Council,20304,Third Party Payments,Recycling,Contract Services-Recycling,20/01/2016,145478,375590.01,FCC ENVIRONMENT SERVICES (FOCSA),A00085,10,2015
Allerdale Borough Council,20101,Third Party Payments,Weekly Collection Support Scheme,Cleansing Contract,20/01/2016,145479,10500,FCC ENVIRONMENT SERVICES (FOCSA),A00085,10,2015
Allerdale Borough Council,20305,Third Party Payments,Maryport Wave,Contract Services-Leisure Centres,20/01/2016,145480,63223.5,GREENWICH LEISURE LTD (PREV CARLISLE LEISURE),A00136,10,2015
Allerdale Borough Council,15101,Supplies & Services,Members Services,Equipment Costs,27/01/2016,145481,103.35,SIEMENS FINANCIAL SERVICES,A01307,10,2015
Allerdale Borough Council,10401,Employee Costs,Shared IT Services Pay Group,Agency Staff Costs,20/01/2016,145482,391.8,ADECCO RECRUITMENT,A00188,10,2015
Allerdale Borough Council,15811,Supplies & Services,Shared ICT Costs,Software Maintenance,20/01/2016,145483,3976.63,NETCENTRIX LIMITED,A00106,10,2015
Allerdale Borough Council,15812,Supplies & Services,IT Services,Software Development,20/01/2016,145484,1090,TOTALMOBILE LIMITED,A01712,10,2015
Allerdale Borough Council,10401,Employee Costs,Shared IT Services Pay Group,Agency Staff Costs,20/01/2016,145485,486.49,ADECCO RECRUITMENT,A00188,10,2015
Allerdale Borough Council,10401,Employee Costs,Shared IT Services Pay Group,Agency Staff Costs,20/01/2016,145486,153.46,ADECCO RECRUITMENT,A00188,10,2015
Allerdale Borough Council,10401,Employee Costs,Shared IT Services Pay Group,Agency Staff Costs,20/01/2016,145487,231.82,ADECCO RECRUITMENT,A00188,10,2015
Allerdale Borough Council,14101,Transport,Shared IT Services Pay Group,Vehicle Leasing,10/02/2016,145488,199,ARNOLD CLARK FINANCE LIMITED,A01781,10,2015
Allerdale Borough Council,10401,Employee Costs,Shared IT Services Pay Group,Agency Staff Costs,20/01/2016,145489,254.67,ADECCO RECRUITMENT,A00188,10,2015
Allerdale Borough Council,15402,Supplies & Services,Multi-functional Printers,Photocopier Charges,20/01/2016,145490,5880.86,KONICA MINOLTA BUSINESS SOLUTIONS UK LTD,A01556,10,2015
Allerdale Borough Council,16309,Supplies & Services,Flood Costs 2015,General - Flooding,20/01/2016,145491,322.01,ARCO LIMITED - HEAD OFFICE HULL,A00045,10,2015
Allerdale Borough Council,15506,Supplies & Services,Finance and Accounting Pay Group,Professional Services,20/01/2016,145492,600,LAMONT PRIDMORE (WEST CUMBRIA) LIMITED,A02105,10,2015
Allerdale Borough Council,33112,Income,Planning and Development,Planning Fees Income,20/01/2016,145493,110,Redacted information - included personal information ,M00831,10,2015
Allerdale Borough Council,33112,Income,Planning and Development,Planning Fees Income,20/01/2016,145494,385,Redacted information - included personal information ,M00832,10,2015
Allerdale Borough Council,31101,Income,Coastal Community Teams,Grants from Government Agencies Income,20/01/2016,145495,25000,NORTH OF ENGLAND CIVIC TRUST,A02178,10,2015
Allerdale Borough Council,16102,Supplies & Services,BEC Social Investment Fund,Regeneration Initiatives,20/01/2016,145496,15400,KIRKGATE ARTS,A01090,10,2015
Allerdale Borough Council,54105,Capital Expenditure,Disabled Facilities Grants,Grants  Private Individuals (Capital),20/01/2016,145497,975,CONISTON CONSULTANTS LTD,X00210,10,2015
Allerdale Borough Council,54105,Capital Expenditure,Disabled Facilities Grants,Grants  Private Individuals (Capital),20/01/2016,145498,975,CONISTON CONSULTANTS LTD,X00210,10,2015
Allerdale Borough Council,20150,Third Party Payments,Off-street - Managed,General Partnership Service Fees,20/01/2016,145499,20978.47,MARYPORT HARBOUR & MARINA LIMITED (PREV MARYPORT DEVELOP),A00186,10,2015
Allerdale Borough Council,15804,Supplies & Services,Shared ICT Costs,Computer Data Lines B.T.,20/01/2016,145500,23632.5,VODAFONE (PREV CABLE & WIRELESS),A00934,10,2015
Allerdale Borough Council,10110,Employee Costs,Chief Executive,Salary Sacrifice,20/01/2016,145501,1344.01,TUSKERDIRECT LTD,A02186,10,2015
Allerdale Borough Council,15401,Supplies & Services,Planning and Development,General Stationery,20/01/2016,145502,-29.98,HEATONS OFFICE SOLUTION (PREV LAKELAND/INTEGRITY),A00069,10,2015
Allerdale Borough Council,15401,Supplies & Services,Planning and Development,General Stationery,20/01/2016,145503,29.98,HEATONS OFFICE SOLUTION (PREV LAKELAND/INTEGRITY),A00069,10,2015
Allerdale Borough Council,20150,Third Party Payments,Footway Lighting Scheme,General Partnership Service Fees,03/02/2016,145504,-0.01,ELECTRICITY NORTH WEST LTD,A00471,10,2015
Allerdale Borough Council,12402,Premises,Public Convenience Cleaning,Electricity,20/01/2016,145505,47.15,N POWER,X00015,10,2015
Allerdale Borough Council,15804,Supplies & Services,IT Services,Computer Data Lines B.T.,20/01/2016,145506,3401.54,BRITISH TELECOMMUNICATIONS,X00004,10,2015
Allerdale Borough Council,15203,Supplies & Services,Members Services,Catering Costs and Consumables,,145507,-85.81,KENT AND SUSSEX VENDING,A02127,10,2015
Allerdale Borough Council,15203,Supplies & Services,Members Services,Catering Costs and Consumables,20/01/2016,145508,553.7,KENT AND SUSSEX VENDING,A02127,10,2015
Allerdale Borough Council,14104,Transport,Off-street - Owned,Repairs & Maintenance,20/01/2016,145509,353.88,FCC ENVIRONMENT SERVICES (FOCSA),A00085,10,2015
Allerdale Borough Council,16150,Supplies & Services,Town Centre Management,General Promotions,20/01/2016,145510,400,CUMBRIAN NEWSPAPERS LIMITED,A00869,10,2015
Allerdale Borough Council,15102,Supplies & Services,Off-street - Owned,Equipment Repair & Maintenance,03/02/2016,145511,462.13,METRIC GROUP LTD,A00568,10,2015
Allerdale Borough Council,15103,Supplies & Services,Health and Safety,Purchase of Materials,03/02/2016,145512,49.32,POSTURITE (UK) LTD,A00336,10,2015
Allerdale Borough Council,14101,Transport,Homelessness,Vehicle Leasing,20/01/2016,145513,171.74,DOBIES VAUXHALL,A00254,10,2015
Allerdale Borough Council,16101,Supplies & Services,Planning and Development,Statutory Notices,20/01/2016,145514,140.24,CUMBRIAN NEWSPAPERS LIMITED,A00869,10,2015
Allerdale Borough Council,16101,Supplies & Services,Planning and Development,Statutory Notices,20/01/2016,145515,205.02,CUMBRIAN NEWSPAPERS LIMITED,A00869,10,2015
Allerdale Borough Council,10401,Employee Costs,Parking Services Pay Group,Agency Staff Costs,03/02/2016,145516,1750,PRACTICUS LTD,A02237,10,2015
Allerdale Borough Council,15808,Supplies & Services,IT Services,Computer Consumables,20/01/2016,145517,558,STORM TECHNOLOGIES,A01018,10,2015
Allerdale Borough Council,15808,Supplies & Services,IT Services,Computer Consumables,20/01/2016,145518,70.5,STORM TECHNOLOGIES,A01018,10,2015
Allerdale Borough Council,15101,Supplies & Services,Recycling,Equipment Costs,03/02/2016,145519,1918.74,BPI RECYCLED PRODUCTS,A00318,10,2015
Allerdale Borough Council,15811,Supplies & Services,Parking Services Pay Group,Software Maintenance,03/02/2016,145520,57.86,RELIANCE HIGH-TECH LTD,C00123,10,2015
Allerdale Borough Council,14105,Transport,Parking Services Pay Group,"Fuel, Lubricants & Consumables",,145521,551.91,BP OIL UK LTD ,X00022,10,2015
Allerdale Borough Council,12402,Premises,Public Convenience Cleaning,Electricity,20/01/2016,145522,18.52,N POWER,X00015,10,2015
Allerdale Borough Council,12408,Premises,Corporate Property Maintenance,Water & Sewage,20/01/2016,145523,93.07,UNITED UTILITIES ,X00011,10,2015
Allerdale Borough Council,12402,Premises,Corporate Property Maintenance,Electricity,20/01/2016,145524,39.67,N POWER,X00015,10,2015
Allerdale Borough Council,12403,Premises,Corporate Property Maintenance,Gas,20/01/2016,145525,101.53,BRITISH GAS,X00039,10,2015
Allerdale Borough Council,12402,Premises,Corporate Property Maintenance,Electricity,20/01/2016,145526,27.06,SOUTHERN ELECTRIC,X00018,10,2015
Allerdale Borough Council,12402,Premises,Corporate Property Maintenance,Electricity,20/01/2016,145527,208.69,N POWER,X00015,10,2015
Allerdale Borough Council,10401,Employee Costs,Licensing Pay Group,Agency Staff Costs,20/01/2016,145528,417.92,ADECCO RECRUITMENT,A00188,10,2015
Allerdale Borough Council,10401,Employee Costs,Licensing Pay Group,Agency Staff Costs,20/01/2016,145529,420.84,ADECCO RECRUITMENT,A00188,10,2015
Allerdale Borough Council,16309,Supplies & Services,Flood Costs 2015,General - Flooding,20/01/2016,145530,114.95,G & M SUPPLIES,A00033,10,2015
Allerdale Borough Council,16350,Supplies & Services,Referral Centre,Miscellaneous Expenses,20/01/2016,145531,20000,THE POLICE & CRIME COMMISSIONER FOR CUMBRIA,M00443,10,2015
Allerdale Borough Council,15803,Supplies & Services,IT Services,Hardware Purchase,10/02/2016,145532,317.41,MISCO,A00125,10,2015
Allerdale Borough Council,15405,Supplies & Services,Npower Energy Efficiency Programme,Use of External Printers,27/01/2016,145533,330,FIRPRESS PRINTERS,A00063,10,2015
Allerdale Borough Council,35103,Income,Tenanted Properties,Other Land and Buildings Income,20/01/2016,145534,50,BURNETTS SOLICITORS,A00129,10,2015
Allerdale Borough Council,20101,Third Party Payments,Recycling,Cleansing Contract,20/01/2016,145535,10873.28,CUMBRIA WASTE MANAGEMENT LTD,A01304,10,2015
Allerdale Borough Council,16309,Supplies & Services,Flood Costs 2015,General - Flooding,,145536,4752.92,BARCLAYCARD COMMERCIAL,X00207,10,2015
Allerdale Borough Council,14105,Transport,Parking Services Pay Group,"Fuel, Lubricants & Consumables",01/02/2016,145537,631.98,BP OIL UK LTD ,X00022,10,2015
Allerdale Borough Council,14105,Transport,Parking Services Pay Group,"Fuel, Lubricants & Consumables",21/12/2015,145538,437.54,BP OIL UK LTD ,X00022,10,2015
Allerdale Borough Council,14105,Transport,Solway Coast AONB Core Funding,"Fuel, Lubricants & Consumables",21/12/2015,145539,532.59,BP OIL UK LTD ,X00022,10,2015
Allerdale Borough Council,16309,Supplies & Services,Flood Costs 2015,General - Flooding,,145540,6,BARCLAYCARD COMMERCIAL ,X00207,10,2015
Allerdale Borough Council,16309,Supplies & Services,Flood Costs 2015,General - Flooding,,145541,6,BARCLAYCARD COMMERCIAL ,X00207,10,2015
Allerdale Borough Council,16309,Supplies & Services,Flood Costs 2015,General - Flooding,,145542,6,BARCLAYCARD COMMERCIAL ,X00207,10,2015
Allerdale Borough Council,16309,Supplies & Services,Flood Costs 2015,General - Flooding,,145543,6,BARCLAYCARD COMMERCIAL ,X00207,10,2015
Allerdale Borough Council,16309,Supplies & Services,Flood Costs 2015,General - Flooding,,145544,6,BARCLAYCARD COMMERCIAL ,X00207,10,2015
Allerdale Borough Council,16309,Supplies & Services,Flood Costs 2015,General - Flooding,,145545,6,BARCLAYCARD COMMERCIAL ,X00207,10,2015
Allerdale Borough Council,16309,Supplies & Services,Flood Costs 2015,General - Flooding,,145546,6,BARCLAYCARD COMMERCIAL ,X00207,10,2015
Allerdale Borough Council,16309,Supplies & Services,Flood Costs 2015,General - Flooding,27/01/2016,145547,189,TRAVIS PERKINS,A00742,10,2015
Allerdale Borough Council,14150,Transport,Gates Travel,General-Council Vehicles (Non-Capital),27/01/2016,145548,1492.2,GATES TRAVEL,A01525,10,2015
Allerdale Borough Council,16308,Supplies & Services,Flood Costs 2015,Housing related costs - Flooding,27/01/2016,145549,128,LARRY'S LODGE,A02280,10,2015
Allerdale Borough Council,15503,Supplies & Services,Legal Services,Court and Tribunal Costs,22/01/2016,145550,240,HM COURT SERVICE,A00913,10,2015
Allerdale Borough Council,15508,Supplies & Services,Licensing Service,Subscriptions,27/01/2016,145551,355,INSTITUTE OF LEGAL EXECUTIVES,A00711,10,2015
Allerdale Borough Council,12101,Premises,Corporate Property Maintenance,External Maintenance & Decoration,03/02/2016,145552,200,W G MACKAY LTD,A01711,10,2015
Allerdale Borough Council,15501,Supplies & Services,Estates,Consultants Fees,,145553,1697.65,HAYS SPECIALIST RECRUITMENT LTD,A00280,10,2015
Allerdale Borough Council,12101,Premises,Corporate Property Maintenance,External Maintenance & Decoration,27/01/2016,145554,150,Redacted information - included personal information ,A00442,10,2015
Allerdale Borough Council,14104,Transport,Asset Management Pay Group,Repairs & Maintenance,27/01/2016,145555,9.5,FCC ENVIRONMENT SERVICES (FOCSA),A00085,10,2015
Allerdale Borough Council,16150,Supplies & Services,Town Centre Management,General Promotions,03/02/2016,145556,120,POD (NORTH WEST) LIMITED,A01977,10,2015
Allerdale Borough Council,15501,Supplies & Services,Solway Wetlands Project,Consultants Fees,27/01/2016,145557,1600,CREATIVE HORIZONS CUMBRIA,A02277,10,2015
Allerdale Borough Council,16306,Supplies & Services,Flood Costs 2015,Environmental costs - Flooding,27/01/2016,145558,73.5,CUMBRIA RECYCLING LTD,A00671,10,2015
Allerdale Borough Council,16306,Supplies & Services,Flood Costs 2015,Environmental costs - Flooding,27/01/2016,145559,242.4,CUMBRIA WASTE MANAGEMENT LTD,A01304,10,2015
Allerdale Borough Council,16306,Supplies & Services,Flood Costs 2015,Environmental costs - Flooding,,145560,7652.92,PLASTIC OMNIUM URBAN SYSTEMS LTD,A00159,10,2015
Allerdale Borough Council,12203,Premises,Corporate Property Maintenance,Plumbing and Heating Maintenance,27/01/2016,145561,400,ENGINEERING (BARB) PIPEWORKS,A00903,10,2015
Allerdale Borough Council,12101,Premises,Car Parks Inspection & Maintenance,External Maintenance & Decoration,27/01/2016,145562,782,Redacted information - included personal information ,C00008,10,2015
Allerdale Borough Council,12101,Premises,Corporate Property Maintenance,External Maintenance & Decoration,27/01/2016,145563,1320,BARRIE HAIGH PAINTING CONTRACTOR,A01607,10,2015
Allerdale Borough Council,12101,Premises,Corporate Property Maintenance,External Maintenance & Decoration,27/01/2016,145564,8782,BARRIE HAIGH PAINTING CONTRACTOR,A01607,10,2015
Allerdale Borough Council,15550,Supplies & Services,Financial Planning & Economic Growth,General-Service Related Fees,27/01/2016,145565,5400,BIZCAT UK LIMITED,A02214,10,2015
Allerdale Borough Council,15200,Supplies & Services,Benefits,Budget-Catering,27/01/2016,145566,126,AL'S KITCHEN LTD,A00187,10,2015
Allerdale Borough Council,15600,Supplies & Services,Benefits,Budget-Postal Services,10/02/2016,145567,1970,ZEBRA TRAINING SERVICES LIMITED,A01801,10,2015
Allerdale Borough Council,81608,Balance Sheet,General Fund,Legal Provisions,27/01/2016,145580,3856.67,Redacted information - included personal information ,M00690,10,2015
Allerdale Borough Council,16102,Supplies & Services,Town Centres,Regeneration Initiatives,27/01/2016,145581,500,ASPATRIA T.C.,X00047,10,2015
Allerdale Borough Council,16102,Supplies & Services,Town Centres,Regeneration Initiatives,27/01/2016,145582,500,ASPATRIA T.C.,X00047,10,2015
Allerdale Borough Council,15102,Supplies & Services,Parking Services Pay Group,Equipment Repair & Maintenance,10/02/2016,145583,2845,METRIC GROUP LTD,A00568,10,2015
Allerdale Borough Council,12103,Premises,Coastal Protection and Inland Flooding,Grounds Maintenance,10/02/2016,145584,755,BLACKPOOL COUNCIL,A00518,10,2015
Allerdale Borough Council,14104,Transport,Off-street - Owned,Repairs & Maintenance,10/02/2016,145585,15.63,METRIC GROUP LTD,A00568,10,2015
Allerdale Borough Council,14104,Transport,Off-street - Owned,Repairs & Maintenance,10/02/2016,145586,110.63,METRIC GROUP LTD,A00568,10,2015
Allerdale Borough Council,15504,Supplies & Services,Legal Services,Public Enquiry Costs,,145587,215,BARCLAYCARD COMMERCIAL,X00207,10,2015
Allerdale Borough Council,15502,Supplies & Services,Legal Services,Land Registry Fees,25/01/2016,145588,140,HM LAND REGISTRY,A00505,10,2015
Allerdale Borough Council,15502,Supplies & Services,Legal Services,Land Registry Fees,26/01/2016,145589,12,HM LAND REGISTRY,A00505,10,2015
Allerdale Borough Council,16350,Supplies & Services,Homelessness,Miscellaneous Expenses,27/01/2016,145590,360,BR PROPERTIES MANAGEMENT ,M00239,10,2015
Allerdale Borough Council,10401,Employee Costs,Licensing Pay Group,Agency Staff Costs,27/01/2016,145591,462.87,ADECCO RECRUITMENT,A00188,10,2015
Allerdale Borough Council,15507,Supplies & Services,Land Charges Service,Searches,27/01/2016,145592,1010,LAKE DISTRICT NATIONAL PARK AUTHORITY,A00415,10,2015
Allerdale Borough Council,16309,Supplies & Services,Flood Costs 2015,General - Flooding,27/01/2016,145593,900,A G BOWE AGRICULTRAL CONTRACTING,M00833,10,2015
Allerdale Borough Council,15603,Supplies & Services,Document Management Pay Group,Franking Machine Costs,27/01/2016,145594,300,THE MAILING ROOM (TMR EXECUTIVE AGENCY LTD),A00733,10,2015
Allerdale Borough Council,15802,Supplies & Services,IT Services,Hardware Maintenance,10/02/2016,145595,1887.66,PROBRAND,A00040,10,2015
Allerdale Borough Council,34150,Income,Customer Services Pay Group,General Recovery of Other Costs-Income,27/01/2016,145596,2000,WEST CUMBRIA COMMUNITY MONEY ADVICE,A02285,10,2015
Allerdale Borough Council,15501,Supplies & Services,Revenue,Consultants Fees,27/01/2016,145597,75,ROSSENDALES LTD,A00964,10,2015
Allerdale Borough Council,15601,Supplies & Services,Benefits,Postage,27/01/2016,145598,1238.76,ROYAL MAIL LETTERS,X00021,10,2015
Allerdale Borough Council,15702,Supplies & Services,Off-street - Owned,Line Rentals,27/01/2016,145599,89.43,COBALT TELEPHONE TECHNOLOGY,A01008,10,2015
Allerdale Borough Council,35106,Income,Homelessness,Dwellings Income,27/01/2016,145600,77.12,ALLERDALE BC,A00342,10,2015
Allerdale Borough Council,12402,Premises,Corporate Property Maintenance,Electricity,27/01/2016,145601,41.97,BES COMMERCIAL ELECTRICITY LTD,X00243,10,2015
Allerdale Borough Council,12403,Premises,Corporate Property Maintenance,Gas,27/01/2016,145602,13.06,EON,X00016,10,2015
Allerdale Borough Council,15601,Supplies & Services,Benefits,Postage,27/01/2016,145603,1222.56,ROYAL MAIL LETTERS,X00021,10,2015
Allerdale Borough Council,32111,Income,Off-street - Managed,Management Fee - Car Parks Income,27/01/2016,145604,4203.13,HEARTHSTONE HOMES LTD,A01229,10,2015
Allerdale Borough Council,15600,Supplies & Services,Electoral Registration,Budget-Postal Services,27/01/2016,145605,214.96,ROYAL MAIL LETTERS,X00021,10,2015
Allerdale Borough Council,12408,Premises,Corporate Property Maintenance,Water & Sewage,27/01/2016,145606,204.43,UNITED UTILITIES ,X00011,10,2015
Allerdale Borough Council,12408,Premises,Public Convenience Cleaning,Water & Sewage,27/01/2016,145607,2.3,UNITED UTILITIES,X00011,10,2015
Allerdale Borough Council,15550,Supplies & Services,Licensing Service,General-Service Related Fees,27/01/2016,145608,24,ORBIS PROTECT LTD (PREV SITEXORBIS LIMITED),A00679,10,2015
Allerdale Borough Council,15803,Supplies & Services,Business Continuity,Hardware Purchase,27/01/2016,145609,1303.25,PROBRAND,A00040,10,2015
Allerdale Borough Council,15803,Supplies & Services,Business Continuity,Hardware Purchase,27/01/2016,145610,947.16,PROBRAND,A00040,10,2015
Allerdale Borough Council,15803,Supplies & Services,Business Continuity,Hardware Purchase,27/01/2016,145611,1583.28,PROBRAND,A00040,10,2015
Allerdale Borough Council,15550,Supplies & Services,Licensing Service,General-Service Related Fees,27/01/2016,145612,24,ORBIS PROTECT LTD (PREV SITEXORBIS LIMITED),A00679,10,2015
Allerdale Borough Council,15550,Supplies & Services,Licensing Service,General-Service Related Fees,27/01/2016,145613,21.6,ORBIS PROTECT LTD (PREV SITEXORBIS LIMITED),A00679,10,2015
Allerdale Borough Council,15550,Supplies & Services,Licensing Service,General-Service Related Fees,27/01/2016,145614,24,ORBIS PROTECT LTD (PREV SITEXORBIS LIMITED),A00679,10,2015
Allerdale Borough Council,16309,Supplies & Services,Flood Costs 2015,General - Flooding,27/01/2016,145615,271.4,ASHTEAD PLANT HIRE CO LTD,C00019,10,2015
Allerdale Borough Council,16306,Supplies & Services,Flood Costs 2015,Environmental costs - Flooding,27/01/2016,145616,350,W G MACKAY LTD,A01711,10,2015
Allerdale Borough Council,16306,Supplies & Services,Flood Costs 2015,Environmental costs - Flooding,27/01/2016,145617,350,W G MACKAY LTD,A01711,10,2015
Allerdale Borough Council,15101,Supplies & Services,Corporate Property Maintenance,Equipment Costs,27/01/2016,145618,102,TELK LTD,A01670,10,2015
Allerdale Borough Council,16350,Supplies & Services,Chief Executive,Miscellaneous Expenses,10/02/2016,145619,3.5,K&R BADGES LIMITED,A01328,10,2015
Allerdale Borough Council,16306,Supplies & Services,Flood Costs 2015,Environmental costs - Flooding,27/01/2016,145620,350,W G MACKAY LTD,A01711,10,2015
Allerdale Borough Council,16306,Supplies & Services,Flood Costs 2015,Environmental costs - Flooding,27/01/2016,145621,350,W G MACKAY LTD,A01711,10,2015
Allerdale Borough Council,14104,Transport,Parking Services Pay Group,Repairs & Maintenance,27/01/2016,145622,39.56,FCC ENVIRONMENT SERVICES (FOCSA),A00085,10,2015
Allerdale Borough Council,10601,Employee Costs,Elections,External Courses & Seminar Fees,,145623,563,ASSOCIATION OF ELECTORAL ADMIN,A00189,10,2015
Allerdale Borough Council,99900,Suspense Acc,9599,Budget - SUSPENSE,27/01/2016,145624,425,Redacted information - included personal information ,R00020,10,2015
Allerdale Borough Council,20108,Third Party Payments,Corporate Management,Audit Fees,27/01/2016,145625,12032,GRANT THORNTON UK LLP,A01736,10,2015
Allerdale Borough Council,10601,Employee Costs,Training,External Courses & Seminar Fees,27/01/2016,145626,1075,THE COMMISSION FOR LOCAL ADMINISTRATION IN ENGLAND,A02282,10,2015
Allerdale Borough Council,15500,Supplies & Services,Economic Regeneration,Budget-Services,27/01/2016,145627,421.4,AL'S KITCHEN LTD,A00187,10,2015
Allerdale Borough Council,15401,Supplies & Services,Solway Coast AONB Core Funding,General Stationery,10/02/2016,145628,130.26,VIKING DIRECT,A00828,10,2015
Allerdale Borough Council,15810,Supplies & Services,Shared ICT Costs,Software Licences,03/02/2016,145629,2870,PHOENIX SOFTWARE LTD,A00229,10,2015
Allerdale Borough Council,54105,Capital Expenditure,Disabled Facilities Grants,Grants  Private Individuals (Capital),27/01/2016,145630,3730,DOLPHIN STAIRLIFTS CUMBRIA,X00107,10,2015
Allerdale Borough Council,54105,Capital Expenditure,Cluster of Empty Homes,Grants  Private Individuals (Capital),27/01/2016,145631,4500,Redacted information - included personal information ,X00240,10,2015
Allerdale Borough Council,10601,Employee Costs,Training,External Courses & Seminar Fees,27/01/2016,145632,1000,INNOVATION CENTRAL LTD,A02081,10,2015
Allerdale Borough Council,10300,Employee Costs,Pensions,Budget-Pensions,10/02/2016,145633,39969.29,YOUR PENSION SERVICE,A01465,10,2015
Allerdale Borough Council,10300,Employee Costs,Human Resources Pay Group,Budget-Pensions,10/02/2016,145634,143.1,YOUR PENSION SERVICE,A01465,10,2015
Allerdale Borough Council,15508,Supplies & Services,Corporate Improvement Team,Subscriptions,27/01/2016,145635,250,SURVEY MONKEY,A01530,10,2015
Allerdale Borough Council,10100,Employee Costs,Customer Services Pay Group,Budget-Salaries,27/01/2016,145636,307.56,ADECCO RECRUITMENT,A00188,10,2015
Allerdale Borough Council,10601,Employee Costs,Training,External Courses & Seminar Fees,27/01/2016,145637,699,SUNNY BROW NURSERY SCHOOL,A02281,10,2015
Allerdale Borough Council,20150,Third Party Payments,Mortgage Repossession Support,General Partnership Service Fees,27/01/2016,145638,5000,CROFTLANDS TRUST,M00282,10,2015
Allerdale Borough Council,33113,Income,Building Control - Chargeable,Building Control Fees Income,27/01/2016,145639,114,Redacted information - included personal information ,M00834,10,2015
Allerdale Borough Council,10401,Employee Costs,Shared IT Services Pay Group,Agency Staff Costs,27/01/2016,145640,513.77,ADECCO RECRUITMENT,A00188,10,2015
Allerdale Borough Council,15405,Supplies & Services,Electoral Registration,Use of External Printers,27/01/2016,145641,319.16,ELECTORAL REFORM SERVICES LTD,A02248,10,2015
Allerdale Borough Council,15405,Supplies & Services,Electoral Registration,Use of External Printers,27/01/2016,145642,1673.16,ELECTORAL REFORM SERVICES LTD,A02248,10,2015
Allerdale Borough Council,15405,Supplies & Services,Electoral Registration,Use of External Printers,27/01/2016,145643,65.17,ELECTORAL REFORM SERVICES LTD,A02248,10,2015
Allerdale Borough Council,15405,Supplies & Services,Electoral Registration,Use of External Printers,27/01/2016,145644,600.1,ELECTORAL REFORM SERVICES LTD,A02248,10,2015
Allerdale Borough Council,15812,Supplies & Services,Shared ICT Costs,Software Development,03/02/2016,145645,3217.5,ABAVUS LIMITED,A02252,10,2015
Allerdale Borough Council,16309,Supplies & Services,Flood Costs 2015,General - Flooding,03/02/2016,145646,363.17,THOMAS GRAHAM & SONS (IRON & STEEL) LTD,A02171,10,2015
Allerdale Borough Council,16309,Supplies & Services,Flood Costs 2015,General - Flooding,03/02/2016,145647,56,ARCO LIMITED - HEAD OFFICE HULL,A00045,10,2015
Allerdale Borough Council,15506,Supplies & Services,Other Land & Buildings,Professional Services,03/02/2016,145648,5000,GERALD EVE LLP,A02091,10,2015
Allerdale Borough Council,15503,Supplies & Services,Legal Services,Court and Tribunal Costs,03/02/2016,145649,100,HM COURT SERVICE,A00913,10,2015
Allerdale Borough Council,20108,Third Party Payments,Corporate Management,Audit Fees,03/02/2016,145650,17490,GRANT THORNTON UK LLP,A01736,10,2015
Allerdale Borough Council,14150,Transport,Gates Travel,General-Council Vehicles (Non-Capital),03/02/2016,145651,654.45,GATES TRAVEL,A01525,10,2015
Allerdale Borough Council,20301,Third Party Payments,Parks and Grounds Maintenance,Contract Services-Parks & Open Spaces,03/02/2016,145652,37315,ISS WATERERS LANDSCAPE,C00044,10,2015
Allerdale Borough Council,15301,Supplies & Services,Finance and Accounting Pay Group,Uniforms,10/02/2016,145653,3.5,K&R BADGES LIMITED,A01328,10,2015
Allerdale Borough Council,15401,Supplies & Services,Planning and Development,General Stationery,03/02/2016,145654,90.48,HEATONS OFFICE SOLUTION (PREV LAKELAND/INTEGRITY),A00069,10,2015
Allerdale Borough Council,15501,Supplies & Services,Planning and Development,Consultants Fees,03/02/2016,145655,375,SWH SURVEYS LIMITED,A01968,10,2015
Allerdale Borough Council,15501,Supplies & Services,Building Control - Chargeable,Consultants Fees,03/02/2016,145656,46,PK ELECTRICAL (CARLISLE) LTD,A00778,10,2015
Allerdale Borough Council,15501,Supplies & Services,Building Control - Chargeable,Consultants Fees,03/02/2016,145657,46,PK ELECTRICAL (CARLISLE) LTD,A00778,10,2015
Allerdale Borough Council,15501,Supplies & Services,Building Control - Chargeable,Consultants Fees,03/02/2016,145658,46,PK ELECTRICAL (CARLISLE) LTD,A00778,10,2015
Allerdale Borough Council,15500,Supplies & Services,Financial Planning & Economic Growth,Budget-Services,03/02/2016,145659,4800,BIZCAT UK LIMITED,A02214,10,2015
Allerdale Borough Council,15101,Supplies & Services,Corporate Property Maintenance,Equipment Costs,,145660,120.9,BOOKER CASH & CARRY ,A01419,10,2015
Allerdale Borough Council,16003,Supplies & Services,Customer Services Pay Group,Security of Cash Movements,,145661,448.17,SECURITY PLUS LIMITED,A00503,10,2015
Allerdale Borough Council,12103,Premises,Coastal Protection and Inland Flooding,Grounds Maintenance,,145662,102,UK HARBOUR MASTERS ASSOCIATION,A01583,10,2015
Allerdale Borough Council,12307,Premises,Corporate Property Maintenance,Fixtures and Fittings,10/02/2016,145663,260,SHERIDAN LIFTS LIMITED,C00120,10,2015
Allerdale Borough Council,15508,Supplies & Services,Elections,Subscriptions,,145664,47.5,ASSOCIATION OF ELECTORAL ADMIN,A00189,10,2015
Allerdale Borough Council,16101,Supplies & Services,Planning and Development,Statutory Notices,03/02/2016,145665,210.36,CUMBRIAN NEWSPAPERS LIMITED,A00869,10,2015
Allerdale Borough Council,16101,Supplies & Services,Planning and Development,Statutory Notices,03/02/2016,145666,287.03,CUMBRIAN NEWSPAPERS LIMITED,A00869,10,2015
Allerdale Borough Council,15506,Supplies & Services,Legal Services,Professional Services,19/01/2016,145667,13013.47,WRAGGE LAWRENCE GRAHAM & CO,M00540,10,2015
Allerdale Borough Council,10601,Employee Costs,Training,External Courses & Seminar Fees,,145668,330,BARCLAYCARD COMMERCIAL ,X00207,10,2015
Allerdale Borough Council,16309,Supplies & Services,Flood Costs 2015,General - Flooding,,145669,670.55,BARCLAYCARD COMMERCIAL ,X00207,10,2015
Allerdale Borough Council,15201,Supplies & Services,Chief Executive,Entertainment Of Visitors,,145670,32.91,BARCLAYCARD COMMERCIAL ,X00207,10,2015
Allerdale Borough Council,16309,Supplies & Services,Flood Costs 2015,General - Flooding,,145671,515.11,BARCLAYCARD COMMERCIAL ,X00207,10,2015
Allerdale Borough Council,75103,Holding and Control Accounts,Payroll Suspense Account,PAYROLL September 15 Travel & Subsistence  ,,,"11,826.63",INLAND REVENUE,X00038,6,2015
